fUST/lending_fUST_20250701
["ID","MTS","AMOUNT","RATE_DAILY","PERIOD"]
[368873503,1751380250461,-444.79547571,0.00017262,2]
[368873504,1751380250484,-460.0,0.00017262,2]
[368873506,1751380250528,-460.0,0.00017262,2]
[368873507,1751380250569,-460.0,0.00017262,2]
[368873509,1751380250595,-460.0,0.00017262,2]
[368873511,1751380250618,-460.0,0.00017262,2]
[368873513,1751380250641,-460.0,0.00017262,2]
[368873515,1751380250664,-1000.0,0.00017528,2]
[368873517,1751380250688,-463.67088597,0.00017528,2]
[368873519,1751380250711,-208.61,0.00017528,2]
[368873521,1751380250739,-460.0,0.00017528,2]
[368873523,1751380250768,-460.0,0.00017528,2]
[368873525,1751380250784,-460.0,0.00017528,2]
[368873527,1751380250794,-460.0,0.00017528,2]
[368873529,1751380250805,-910.65,0.00017528,2]
[368873531,1751380250816,-257.6558134,0.00017528,2]
[368873533,1751380250828,-460.0,0.00017528,2]
[368873535,1751380250837,-460.0,0.00017528,2]
[368873537,1751380250847,-460.0,0.00017528,2]
[368873539,1751380250857,-460.0,0.00017528,2]
[368873540,1751380250866,-460.0,0.00017528,2]
[368873546,1751380250912,-460.0,0.00017528,2]
[368873548,1751380250922,-460.0,0.00017528,2]
[368873550,1751380250932,-492.98,0.00017528,2]
[368873552,1751380250942,-521.41,0.00017528,2]
[368873554,1751380250951,-460.0,0.00017528,2]
[368873556,1751380250961,-460.0,0.00017528,2]
[368873558,1751380250971,-460.0,0.00017528,2]
[368873560,1751380250982,-460.0,0.00017528,2]
[368873562,1751380250991,-460.0,0.00017528,2]
[368873564,1751380251002,-334.6697116,0.00017529,2]
[368873566,1751380251011,-460.0,0.00017529,2]
[368873568,1751380251020,-460.0,0.00017529,2]
[368873570,1751380251029,-460.0,0.00017529,2]
[368873572,1751380251039,-460.0,0.00017529,2]
[368873574,1751380251048,-460.0,0.00017529,2]
[368873576,1751380251058,-460.0,0.00017529,2]
[368873578,1751380251068,-460.0,0.00017529,2]
[368873580,1751380251078,-564.36425876,0.0001753,2]
[368873582,1751380251087,-460.0,0.0001753,2]
[368873583,1751380251095,-460.0,0.0001753,2]
[368873585,1751380251105,-460.0,0.00017531,2]
[368873587,1751380251114,-460.0,0.00017531,2]
[368873589,1751380251124,-460.0,0.00017531,2]
[368873591,1751380251133,-460.0,0.00017531,2]
[368873593,1751380251143,-460.0,0.00017531,2]
[368873595,1751380251152,-460.0,0.00017531,2]
[368873597,1751380251161,-325.28,0.00017531,2]
[368873599,1751380251171,-495.79532,0.00017531,2]
[368873601,1751380251180,-460.0,0.00017531,2]
[368873603,1751380251192,-460.0,0.00017531,2]
[368873605,1751380251201,-460.0,0.00017531,2]
[368873607,1751380251210,-460.0,0.00017531,2]
[368873609,1751380251220,-460.0,0.00017531,2]
[368873611,1751380251235,-460.0,0.00017531,2]
[368873613,1751380251245,-460.0,0.00017531,2]
[368873615,1751380251255,-460.0,0.00017531,2]
[368873617,1751380251265,-460.0,0.00017531,2]
[368873619,1751380251275,-460.0,0.00017531,2]
[368873621,1751380251284,-570.93322524,0.00017531,2]
[368873623,1751380251293,-460.0,0.00017531,2]
[368873624,1751380251302,-460.0,0.00017531,2]
[368873626,1751380251313,-460.0,0.00017531,2]
[368873628,1751380251323,-460.0,0.00017531,2]
[368873631,1751380251333,-460.0,0.00017531,2]
[368873632,1751380251342,-462.34162266,0.00017531,2]
[368873635,1751380251352,-460.0,0.00017531,2]
[368873636,1751380251361,-460.0,0.00017531,2]
[368873639,1751380251371,-460.0,0.00017531,2]
[368873641,1751380251380,-460.0,0.00017531,2]
[368873642,1751380251389,-460.0,0.00017531,2]
[368873644,1751380251398,-460.0,0.00017531,2]
[368873646,1751380251408,-460.0,0.00017531,2]
[368873648,1751380251417,-345.22032504,0.00017531,2]
[368873650,1751380251428,-460.0,0.00017531,2]
[368873652,1751380251438,-460.0,0.00017531,2]
[368873654,1751380251447,-500.0,0.00017531,2]
[368873656,1751380251457,-460.0,0.00017531,2]
[368873658,1751380251467,-460.0,0.00017531,2]
[368873660,1751380251476,-460.0,0.00017531,2]
[368873662,1751380251487,-460.0,0.00017531,2]
[368873664,1751380251496,-460.0,0.00017531,2]
[368873667,1751380251506,-272.67,0.00017531,2]
[368873669,1751380251516,-460.0,0.00017531,2]
[368873670,1751380251526,-460.0,0.00017531,2]
[368873672,1751380251535,-460.0,0.00017531,2]
[368873674,1751380251545,-460.0,0.00017531,2]
[368873676,1751380251554,-460.0,0.00017532,2]
[368873678,1751380251564,-460.0,0.00017532,2]
[368873680,1751380251573,-460.0,0.00017532,2]
[368873682,1751380251583,-460.0,0.00017532,2]
[368873684,1751380251592,-460.0,0.00017532,2]
[368873686,1751380251601,-460.0,0.00017532,2]
[368873688,1751380251610,-460.0,0.00017532,2]
[368873690,1751380251619,-460.0,0.00017532,2]
[368873692,1751380251629,-460.0,0.00017532,2]
[368873694,1751380251638,-460.0,0.00017532,2]
[368873696,1751380251647,-460.0,0.00017532,2]
[368873698,1751380251656,-460.0,0.00017532,2]
[368873700,1751380251666,-460.0,0.00017532,2]
[368873702,1751380251675,-460.0,0.00017532,2]
[368873704,1751380251685,-460.0,0.00017532,2]
[368873706,1751380251694,-460.0,0.00017532,2]
[368873708,1751380251704,-460.0,0.00017532,2]
[368873710,1751380251713,-460.0,0.00017532,2]
[368873712,1751380251722,-460.0,0.00017532,2]
[368873714,1751380251733,-460.0,0.00017532,2]
[368873716,1751380251742,-430.0,0.00017532,2]
[368873717,1751380251751,-264.98772848,0.00017532,2]
[368873719,1751380251761,-460.0,0.00017532,2]
[368873721,1751380251770,-213.19291487,0.00017532,2]
[368873723,1751380251780,-460.0,0.00017532,2]
[368873725,1751380251790,-319.67151518,0.00017532,2]
[368873727,1751380251799,-460.0,0.00017532,2]
[368873729,1751380251808,-460.0,0.00017532,2]
[368873731,1751380251817,-445.08686758,0.00017532,2]
[368873733,1751380251828,-363.11794743,0.00017532,2]
[368873735,1751380251837,-460.0,0.00017532,2]
[368873737,1751380251846,-460.0,0.00017532,2]
[368873739,1751380251855,-460.0,0.00017532,2]
[368873741,1751380251865,-460.0,0.00017532,2]
[368873743,1751380251874,-460.0,0.00017532,2]
[368873745,1751380251884,-438.4690602,0.00017532,2]
[368873747,1751380251893,-460.0,0.00017532,2]
[368873749,1751380251902,-460.0,0.00017532,2]
[368873751,1751380251911,-460.0,0.00017532,2]
[368873753,1751380251922,-460.0,0.00017532,2]
[368873755,1751380251932,-226.44411232,0.00017532,2]
[368873757,1751380251941,-460.0,0.00017532,2]
[368873759,1751380251950,-460.0,0.00017532,2]
[368873761,1751380251959,-460.0,0.00017532,2]
[368873763,1751380251968,-460.0,0.00017532,2]
[368873765,1751380251979,-460.0,0.00017532,2]
[368873767,1751380251987,-498.61,0.00017532,2]
[368873769,1751380251997,-460.0,0.00017532,2]
[368873771,1751380252006,-460.0,0.00017532,2]
[368873773,1751380252015,-460.0,0.00017532,2]
[368873774,1751380252024,-462.42298765,0.00017532,2]
[368873776,1751380252033,-460.0,0.00017532,2]
[368873779,1751380252043,-460.95376838,0.00017532,2]
[368873780,1751380252053,-460.0,0.00017532,2]
[368873783,1751380252063,-418.36982954,0.00017532,2]
[368873785,1751380252073,-460.0,0.00017532,2]
[368873787,1751380252082,-460.0,0.00017532,2]
[368873789,1751380252092,-461.55767492,0.00017532,2]
[368873791,1751380252102,-460.0,0.00017532,2]
[368873793,1751380252111,-463.1330646,0.00017532,2]
[368873795,1751380252121,-460.0,0.00017532,2]
[368873797,1751380252130,-460.0,0.00017532,2]
[368873799,1751380252140,-397.40229854,0.00017532,2]
[368873800,1751380252149,-460.0,0.00017532,2]
[368873802,1751380252159,-460.70542833,0.00017532,2]
[368873804,1751380252169,-462.64462848,0.00017532,2]
[368873806,1751380252178,-460.0,0.00017532,2]
[368873808,1751380252188,-462.19240207,0.00017532,2]
[368873810,1751380252198,-463.55864156,0.00017532,2]
[368873812,1751380252207,-460.0,0.00017532,2]
[368873814,1751380252217,-598.89528059,0.00017532,2]
[368873816,1751380252227,-490.06518527,0.00017532,2]
[368873819,1751380252241,-460.0,0.00017532,2]
[368873821,1751380252250,-460.0,0.00017532,2]
[368873822,1751380252260,-460.0,0.00017532,2]
[368873824,1751380252270,-460.0,0.00017532,2]
[368873826,1751380252280,-460.0,0.00017532,2]
[368873828,1751380252290,-460.0,0.00017532,2]
[368873831,1751380252300,-460.0,0.00017532,2]
[368873833,1751380252312,-460.0,0.00017532,2]
[368873835,1751380252322,-247.01192323,0.00017532,2]
[368873837,1751380252332,-460.0,0.00017532,2]
[368873839,1751380252341,-460.0,0.00017532,2]
[368873841,1751380252351,-460.0,0.00017532,2]
[368873843,1751380252360,-460.0,0.00017532,2]
[368873845,1751380252370,-460.0,0.00017532,2]
[368873847,1751380252379,-460.0,0.00017532,2]
[368873849,1751380252389,-460.0,0.00017532,2]
[368873851,1751380252398,-460.0,0.00017532,2]
[368873853,1751380252408,-460.0,0.00017532,2]
[368873855,1751380252417,-460.0,0.00017532,2]
[368873857,1751380252427,-460.0,0.00017532,2]
[368873859,1751380252437,-385.65380767,0.00017532,2]
[368873861,1751380252447,-460.0,0.00017532,2]
[368873863,1751380252457,-460.0,0.00017532,2]
[368873865,1751380252467,-460.0,0.00017532,2]
[368873867,1751380252477,-460.0,0.00017532,2]
[368873869,1751380252487,-460.0,0.00017532,2]
[368873871,1751380252496,-500.0,0.00017532,2]
[368873873,1751380252506,-460.0,0.00017532,2]
[368873875,1751380252516,-460.0,0.00017533,2]
[368873877,1751380252526,-460.0,0.00017533,2]
[368873879,1751380252536,-460.0,0.00017533,2]
[368873881,1751380252545,-460.0,0.00017533,2]
[368873883,1751380252555,-460.0,0.00017533,2]
[368873885,1751380252566,-460.0,0.00017533,2]
[368873887,1751380252575,-461.85566721,0.00017533,2]
[368873889,1751380252585,-461.90550623,0.00017533,2]
[368873891,1751380252595,-460.0,0.00017533,2]
[368873893,1751380252604,-460.0,0.00017533,2]
[368873895,1751380252614,-460.0,0.00017533,2]
[368873897,1751380252624,-462.54017521,0.00017533,2]
[368873899,1751380252634,-460.0,0.00017533,2]
[368873901,1751380252644,-460.0,0.00017533,2]
[368873903,1751380252654,-460.0,0.00017533,2]
[368873905,1751380252663,-460.0,0.00017533,2]
[368873907,1751380252672,-460.0,0.00017533,2]
[368873909,1751380252682,-460.0,0.00017533,2]
[368873911,1751380252692,-462.93383519,0.00017533,2]
[368873913,1751380252702,-460.0,0.00017533,2]
[368873915,1751380252711,-460.0,0.00017533,2]
[368873917,1751380252721,-460.0,0.00017533,2]
[368873919,1751380252731,-460.0,0.00017533,2]
[368873922,1751380252742,-460.0,0.00017533,2]
[368873924,1751380252752,-404.67375038,0.00017533,2]
[368873925,1751380252762,-460.0,0.00017533,2]
[368873928,1751380252771,-460.0,0.00017533,2]
[368873930,1751380252781,-460.0,0.00017533,2]
[368873932,1751380252791,-460.0,0.00017533,2]
[368873934,1751380252800,-460.0,0.00017533,2]
[368873936,1751380252810,-299.88456175,0.00017533,2]
[368873938,1751380252819,-460.0,0.00017533,2]
[368873940,1751380252828,-460.0,0.00017533,2]
[368873942,1751380252838,-460.0,0.00017533,2]
[368873943,1751380252847,-460.0,0.00017533,2]
[368873945,1751380252857,-462.45976577,0.00017533,2]
[368873948,1751380252867,-460.0,0.00017535,2]
[368873949,1751380252876,-460.0,0.00017535,2]
[368873952,1751380252886,-460.71189707,0.00017535,2]
[368873953,1751380252895,-460.0,0.00017535,2]
[368873956,1751380252905,-460.0,0.00017535,2]
[368873957,1751380252915,-460.0,0.00017535,2]
[368873960,1751380252924,-460.0,0.00017535,2]
[368873962,1751380252934,-460.0,0.00017535,2]
[368873964,1751380252945,-460.0,0.00017535,2]
[368873965,1751380252955,-460.0,0.00017535,2]
[368873968,1751380252965,-460.0,0.00017535,2]
[368873969,1751380252974,-201.69336041,0.00017535,2]
[368873971,1751380252985,-462.1853547,0.00017536,2]
[368873974,1751380252995,-460.0,0.00017536,2]
[368873975,1751380253004,-460.0,0.00017536,2]
[368873977,1751380253014,-461.4524842,0.00017536,2]
[368873979,1751380253023,-460.0,0.00017536,2]
[368873982,1751380253034,-410.0,0.00017536,2]
[368873984,1751380253043,-461.66580671,0.00017536,2]
[368873986,1751380253052,-461.29798967,0.00017536,2]
[368873988,1751380253062,-461.50828279,0.00017536,2]
[368873989,1751380253072,-460.0,0.00017536,2]
[368873992,1751380253082,-461.6091968,0.00017536,2]
[368873993,1751380253092,-460.0,0.00017536,2]
[368873994,1751380253101,-460.0,0.00017536,2]
[368873995,1751380253111,-460.0,0.00017536,2]
[368873996,1751380253120,-460.0,0.00017536,2]
[368873997,1751380253131,-460.0,0.00017536,2]
[368873998,1751380253141,-460.0,0.00017536,2]
[368874000,1751380253150,-460.0,0.00017536,2]
[368874002,1751380253160,-460.0,0.00017536,2]
[368874005,1751380253170,-460.0,0.00017536,2]
[368874007,1751380253179,-460.0,0.00017536,2]
[368874008,1751380253188,-533.30129568,0.00017536,2]
[368874011,1751380253198,-460.0,0.00017536,2]
[368874013,1751380253208,-462.13596083,0.00017536,2]
[368874015,1751380253217,-460.0,0.00017536,2]
[368874017,1751380253231,-460.0,0.00017536,2]
[368874018,1751380253241,-460.0,0.00017536,2]
[368874020,1751380253251,-431.06111639,0.00017536,2]
[368874023,1751380253260,-460.0,0.00017536,2]
[368874025,1751380253270,-460.0,0.00017536,2]
[368874027,1751380253280,-460.0,0.00017536,2]
[368874029,1751380253290,-1000.0,0.00017802,2]
[368874031,1751380253301,-388.04952967,0.00017802,2]
[368874033,1751380253310,-460.0,0.00017802,2]
[368874035,1751380253320,-910.65,0.00017802,2]
[368874037,1751380253330,-460.0,0.00017802,2]
[368874039,1751380253340,-460.0,0.00017802,2]
[368874041,1751380253349,-460.0,0.00017802,2]
[368874043,1751380253359,-350.66,0.00017802,2]
[368874045,1751380253370,-460.0,0.00017802,2]
[368874047,1751380253380,-468.75290898,0.00017802,2]
[368874049,1751380253390,-460.0,0.00017802,2]
[368874051,1751380253399,-201.88,0.00017803,2]
[368874053,1751380253409,-169.71,0.00017803,2]
[368874055,1751380253419,-460.0,0.00017803,2]
[368874057,1751380253429,-499.03696814,0.00017803,2]
[368874059,1751380253439,-460.0,0.00017803,2]
[368874061,1751380253449,-460.0,0.00017803,2]
[368874063,1751380253459,-460.0,0.00017804,2]
[368874065,1751380253468,-460.0,0.00017805,2]
[368874067,1751380253479,-326.21,0.00017805,2]
[368874070,1751380253489,-474.18,0.00017805,2]
[368874072,1751380253499,-460.0,0.00017805,2]
[368874074,1751380253509,-460.0,0.00017805,2]
[368874076,1751380253518,-460.0,0.00017805,2]
[368874078,1751380253528,-460.0,0.00017805,2]
[368874080,1751380253538,-207.29,0.00017805,2]
[368874082,1751380253547,-460.0,0.00017805,2]
[368874084,1751380253557,-460.0,0.00017805,2]
[368874086,1751380253567,-460.0,0.00017805,2]
[368874088,1751380253577,-460.0,0.00017805,2]
[368874090,1751380253588,-460.0,0.00017805,2]
[368874092,1751380253598,-518.36578704,0.00017805,2]
[368874094,1751380253607,-460.0,0.00017805,2]
[368874096,1751380253618,-222.28,0.00017805,2]
[368874098,1751380253627,-460.0,0.00017805,2]
[368874100,1751380253638,-460.0,0.00017806,2]
[368874102,1751380253648,-541.8411432,0.00017806,2]
[368874104,1751380253658,-460.0,0.00017806,2]
[368874106,1751380253667,-460.0,0.00017806,2]
[368874108,1751380253677,-150.06763191,0.00017806,2]
[368874110,1751380253687,-460.0,0.00017806,2]
[368874112,1751380253698,-460.0,0.00017806,2]
[368874114,1751380253707,-460.0,0.00017806,2]
[368874116,1751380253717,-460.0,0.00017806,2]
[368874118,1751380253727,-460.0,0.00017806,2]
[368874120,1751380253738,-460.0,0.00017806,2]
[368874122,1751380253748,-460.0,0.00017806,2]
[368874124,1751380253758,-460.0,0.00017806,2]
[368874126,1751380253768,-460.0,0.00017806,2]
[368874128,1751380253777,-460.0,0.00017806,2]
[368874130,1751380253787,-460.0,0.00017806,2]
[368874132,1751380253797,-460.0,0.00017806,2]
[368874135,1751380253807,-460.0,0.00017806,2]
[368874137,1751380253817,-460.0,0.00017806,2]
[368874139,1751380253827,-460.0,0.00017806,2]
[368874141,1751380253837,-463.66585343,0.00017806,2]
[368874143,1751380253846,-460.0,0.00017806,2]
[368874145,1751380253856,-460.0,0.00017806,2]
[368874147,1751380253866,-460.0,0.00017806,2]
[368874149,1751380253876,-460.0,0.00017806,2]
[368874151,1751380253886,-460.0,0.00017806,2]
[368874153,1751380253896,-434.21122696,0.00017806,2]
[368874155,1751380253906,-460.0,0.00017806,2]
[368874157,1751380253916,-460.0,0.00017806,2]
[368874159,1751380253925,-460.0,0.00017806,2]
[368874161,1751380253936,-460.0,0.00017806,2]
[368874163,1751380253946,-460.0,0.00017806,2]
[368874165,1751380253956,-460.0,0.00017807,2]
[368874167,1751380253966,-460.0,0.00017807,2]
[368874169,1751380253976,-460.0,0.00017807,2]
[368874171,1751380253986,-460.0,0.00017807,2]
[368874174,1751380253996,-460.0,0.00017807,2]
[368874176,1751380254006,-460.0,0.00017807,2]
[368874177,1751380254016,-460.0,0.00017807,2]
[368874180,1751380254026,-460.0,0.00017807,2]
[368874182,1751380254036,-460.0,0.00017807,2]
[368874184,1751380254045,-168.51688129,0.00017807,2]
[368874186,1751380254055,-462.86962184,0.00017807,2]
[368874188,1751380254064,-460.0,0.00017807,2]
[368874190,1751380254074,-460.0,0.00017807,2]
[368874192,1751380254084,-429.09656256,0.00017807,2]
[368874194,1751380254094,-460.0,0.00017807,2]
[368874196,1751380254103,-460.0,0.00017807,2]
[368874198,1751380254114,-460.0,0.00017807,2]
[368874200,1751380254124,-460.0,0.00017807,2]
[368874202,1751380254133,-460.0,0.00017807,2]
[368874204,1751380254143,-460.0,0.00017807,2]
[368874206,1751380254153,-460.0,0.00017807,2]
[368874208,1751380254164,-460.0,0.00017809,2]
[368874210,1751380254174,-460.0,0.00017809,2]
[368874212,1751380254183,-460.0,0.00017809,2]
[368874214,1751380254193,-460.0,0.00017809,2]
[368874216,1751380254203,-460.0,0.00017809,2]
[368874218,1751380254213,-460.0,0.00017809,2]
[368874220,1751380254223,-460.0,0.00017809,2]
[368874222,1751380254235,-460.0,0.00017809,2]
[368874224,1751380254245,-460.0,0.00017809,2]
[368874226,1751380254254,-461.56569588,0.0001781,2]
[368874228,1751380254264,-465.19556274,0.0001781,2]
[368874230,1751380254275,-460.0,0.0001781,2]
[368874232,1751380254285,-151.38006138,0.0001781,2]
[368874235,1751380254295,-462.61172125,0.0001781,2]
[368874237,1751380254305,-532.37,0.0001781,2]
[368874239,1751380254314,-460.0,0.0001781,2]
[368874254,1751380254452,-460.0,0.0001781,2]
[368874256,1751380254463,-460.0,0.0001781,2]
[368874258,1751380254472,-460.0,0.0001781,2]
[368874260,1751380254484,-460.0,0.0001781,2]
[368874262,1751380254494,-460.0,0.0001781,2]
[368874264,1751380254503,-460.0,0.0001781,2]
[368874266,1751380254513,-460.0,0.0001781,2]
[368874268,1751380254523,-500.0,0.00017873,2]
[368874270,1751380254532,-395.58206686,0.00017873,2]
[368874272,1751380254542,-540.0,0.00017873,2]
[368874274,1751380254552,-396.46133684,0.00017873,2]
[368874277,1751380254562,-500.0,0.00017873,2]
[368874278,1751380254572,-163.45,0.00018,2]
[368874280,1751380254582,-1003.36114315,0.00018076,2]
[368874282,1751380254592,-910.65,0.00018076,2]
[368874284,1751380254602,-460.0,0.00018076,2]
[368874287,1751380254612,-273.63450792,0.00018076,2]
[368874289,1751380254622,-460.0,0.00018077,2]
[368874291,1751380254632,-460.0,0.00018077,2]
[368874293,1751380254641,-460.0,0.00018077,2]
[368874295,1751380254651,-460.0,0.00018078,2]
[368874297,1751380254660,-513.98,0.00018079,2]
[368874299,1751380254670,-460.0,0.00018079,2]
[368874301,1751380254680,-272.11859432,0.00018079,2]
[368874303,1751380254690,-460.0,0.00018079,2]
[368874305,1751380254699,-252.01,0.00018079,2]
[368874307,1751380254709,-460.0,0.00018079,2]
[368874309,1751380254718,-557.94,0.00018079,2]
[368874311,1751380254728,-460.0,0.00018079,2]
[368874313,1751380254738,-217.06,0.00018079,2]
[368874315,1751380254748,-460.0,0.0001808,2]
[368874317,1751380254758,-460.0,0.0001808,2]
[368874319,1751380254768,-460.0,0.0001808,2]
[368874321,1751380254778,-460.0,0.0001808,2]
[368874323,1751380254788,-460.0,0.0001808,2]
[368874325,1751380254798,-460.0,0.0001808,2]
[368874327,1751380254808,-394.03822646,0.0001808,2]
[368874329,1751380254817,-460.0,0.0001808,2]
[368874331,1751380254827,-460.0,0.0001808,2]
[368874333,1751380254836,-518.94,0.0001808,2]
[368874335,1751380254845,-460.0,0.00018081,2]
[368874338,1751380254855,-460.0,0.00018081,2]
[368874340,1751380254864,-460.0,0.00018081,2]
[368874341,1751380254874,-460.0,0.00018081,2]
[368874343,1751380254884,-460.0,0.00018081,2]
[368874345,1751380254893,-460.0,0.00018081,2]
[368874347,1751380254902,-460.0,0.00018081,2]
[368874349,1751380254912,-460.0,0.00018081,2]
[368874351,1751380254921,-460.0,0.00018081,2]
[368874353,1751380254931,-460.0,0.00018081,2]
[368874355,1751380254941,-460.0,0.00018081,2]
[368874357,1751380254950,-460.0,0.00018081,2]
[368874359,1751380254959,-207.70176323,0.00018083,2]
[368874361,1751380254968,-460.0,0.00018083,2]
[368874363,1751380254981,-460.0,0.00018083,2]
[368874366,1751380254990,-460.0,0.00018083,2]
[368874368,1751380255000,-460.0,0.00018084,2]
[368874370,1751380255009,-460.0,0.00018084,2]
[368874372,1751380255018,-460.0,0.00018084,2]
[368874374,1751380255028,-910.65,0.0001835,2]
[368874376,1751380255037,-460.0,0.0001835,2]
[368874378,1751380255047,-460.0,0.00018351,2]
[368874380,1751380255056,-460.0,0.00018351,2]
[368874382,1751380255065,-460.0,0.00018351,2]
[368874384,1751380255076,-460.0,0.00018352,2]
[368874386,1751380255085,-181.82805672,0.00018353,2]
[368874388,1751380255094,-460.0,0.00018353,2]
[368874390,1751380255103,-460.0,0.00018353,2]
[368874392,1751380255112,-460.0,0.00018354,2]
[368874394,1751380255122,-232.25180472,0.00018354,2]
[368874396,1751380255131,-308.36983827,0.00018354,2]
[368874398,1751380255141,-426.57137781,0.00018354,2]
[368874400,1751380255150,-460.0,0.00018355,2]
[368874402,1751380255159,-586.22,0.00018355,2]
[368874404,1751380255170,-460.0,0.00018355,2]
[368874406,1751380255179,-460.0,0.00018355,2]
[368874408,1751380255187,-460.0,0.00018357,2]
[368874410,1751380255197,-553.49679332,0.00018357,2]
[368874412,1751380255206,-460.0,0.00018357,2]
[368874414,1751380255216,-460.0,0.00018358,2]
[368874416,1751380255227,-549.80247671,0.00018358,2]
[368874418,1751380255240,-1000.0,0.00018421,2]
[368874420,1751380255251,-339.58,0.00018618,3]
[368874422,1751380255261,-910.65,0.00018624,2]
[368874424,1751380255271,-460.0,0.00018624,2]
[368874426,1751380255280,-460.0,0.00018625,2]
[368874428,1751380255290,-460.0,0.00018625,2]
[368874430,1751380255300,-460.0,0.00018625,2]
[368874432,1751380255310,-460.0,0.00018626,2]
[368874434,1751380255319,-505.78,0.00018627,2]
[368874436,1751380255328,-460.0,0.00018627,2]
[368874438,1751380255338,-460.0,0.00018628,2]
[368874440,1751380255347,-460.0,0.00018631,2]
[368874442,1751380255356,-310.10689065,0.00018631,2]
[368874444,1751380255366,-460.0,0.00018632,2]
[368874446,1751380255375,-910.65,0.00018898,2]
[368874448,1751380255384,-460.0,0.00018898,2]
[368874450,1751380255398,-460.0,0.00018899,2]
[368874452,1751380255414,-460.0,0.00018899,2]
[368874454,1751380255425,-460.0,0.00018899,2]
[368874456,1751380255436,-460.0,0.000189,2]
[368874458,1751380255447,-757.38917909,0.000189,2]
[368874460,1751380255458,-667.49716467,0.000189,2]
[368874462,1751380255467,-460.0,0.00018901,2]
[368874464,1751380255477,-460.0,0.00018902,2]
[368874466,1751380255489,-460.0,0.00018905,2]
[368874468,1751380255498,-418.51,0.00018906,2]
[368874470,1751380255508,-500.0,0.00018968,2]
[368874472,1751380255518,-1120.88214214,0.0001908,2]
[368874474,1751380255528,-757.38917899,0.00019141,2]
[368874476,1751380255537,-910.65,0.00019172,2]
[368874478,1751380255546,-460.0,0.00019172,2]
[368874480,1751380255556,-460.0,0.00019173,2]
[368874482,1751380255566,-460.0,0.00019173,2]
[368874484,1751380255576,-293.61,0.00019173,2]
[368874486,1751380255586,-460.0,0.00019174,2]
[368874488,1751380255596,-460.0,0.00019175,2]
[368874490,1751380255606,-186.8,0.00019176,2]
[368874492,1751380255616,-283.899453,0.00019178,2]
[368874494,1751380255627,-460.0,0.00019179,2]
[368874496,1751380255636,-160.0,0.00019307,2]
[368874498,1751380255647,-12571.40790328,0.00019307,2]
[368874500,1751380255657,-160.0,0.00019307,2]
[368874502,1751380255667,-837.20943635,0.00019307,2]
[368874504,1751380255676,-213.87551669,0.00019307,2]
[368874506,1751380255697,-160.0,0.00019307,2]
[368874508,1751380255720,-215.01728679,0.00019307,2]
[368874510,1751380255743,-847.53272281,0.00019307,2]
[368874512,1751380255766,-230.32585361,0.00019313,2]
[368874514,1751380255789,-757.38917899,0.00019383,2]